bitfinex/quotes_SOLUSD_20241008
["timestamp","ask_amount","ask_price","bid_price","bid_amount"]
[1728403646510,7.0299,142.25,142.18,0.25098]
[1728403646825,1.39908322,142.24,142.19,17.581]
[1728403647028,7.0294,142.26,142.21,7.0316]
[1728403647548,1.39908322,142.27,142.18,0.25098]
[1728403647719,1.39908322,142.3,142.21,17.579]
[1728403648224,7.0288,142.28,142.22,7.0309]
[1728403648425,8.9660032,142.34,142.22,6.085]
[1728403648623,7.0282,142.29,142.24,24.6059]
[1728403648828,1.39908322,142.28,142.24,24.6059]
[1728403649025,7.0282,142.29,142.24,24.6059]
[1728403649230,7.0279,142.29,142.24,24.6056]
[1728403649423,8.42778322,142.28,142.24,17.5757]
[1728403649623,7.0287,142.28,142.24,17.5757]
[1728403650036,7.028,142.29,142.24,24.6059]
[1728403651661,1.39908322,142.31,142.24,24.6059]
[1728403651968,0.12549,142.3,142.23,15.2304]
[1728403652165,7.0299,142.25,142.23,15.2304]
[1728403652371,1.39908322,142.29,142.23,15.2304]
[1728403652578,7.0294,142.26,142.23,15.2304]
[1728403653275,7.0288,142.28,142.24,8.43613016]
[1728403653567,7.0288,142.28,142.24,7.0302]
[1728403654366,7.028,142.29,142.24,7.0302]
[1728403654577,8.42748322,142.28,142.23,39.8377]
[1728403654760,7.0284,142.28,142.23,39.8377]
[1728403655366,7.0299,142.25,142.22,6.085]
[1728403655885,7.0316,142.22,142.19,15.1735]
[1728403656068,1.81359,142.3,142.19,15.1735]
[1728403656069,17.5738,142.26,142.19,15.1735]
[1728403656378,7.0315,142.22,142.19,15.1735]
[1728403656564,7.032,142.21,142.19,15.1735]
[1728403657280,1.39908322,142.25,142.2,1.40639732]
[1728403657450,1.39908322,142.25,142.19,15.1735]
[1728403657650,1.39908322,142.25,142.2,7.0323]
[1728403657848,18.96948322,142.29,142.2,7.0323]
[1728403658047,7.0316,142.22,142.19,15.1735]
[1728403658354,7.0318,142.21,142.19,15.1735]
[1728403658565,7.0317,142.22,142.19,15.1735]
[1728403658760,7.0317,142.22,142.2,1.40627949]
[1728403658966,7.0317,142.22,142.18,30.9375]
[1728403660467,1.39908322,142.26,142.18,30.9375]
[1728403660672,7.031,142.23,142.18,30.9375]
[1728403662173,1.39908322,142.26,142.18,30.9375]
[1728403662375,7.0315,142.22,142.18,23.9042]
[1728403662880,7.0315,142.22,142.18,30.9371]
[1728403663065,7.0309,142.23,142.18,30.9371]
[1728403663266,7.0309,142.23,142.19,7.0328]
[1728403664878,7.0295,142.26,142.21,1.4060243]
[1728403665884,18.96838322,142.3,142.21,1.4060243]
[1728403666064,7.0287,142.28,142.22,18.98396522]
[1728403666301,7.0287,142.28,142.22,17.5781]
[1728403666588,7.0287,142.28,142.23,7.0304]
[1728403667183,18.96838322,142.3,142.22,17.5781]
[1728403667386,7.0293,142.26,142.22,24.6091]
[1728403667595,7.029,142.27,142.23,7.0308]
[1728403668459,7.0294,142.26,142.22,24.6093]
[1728403669766,1.39908322,142.3,142.23,1.40584067]
[1728403669985,0.12549,142.32,142.24,17.5752]
[1728403670175,7.0289,142.27,142.24,17.5752]
[1728403672589,7.028,142.29,142.25,23.98626689]
[1728403672771,7.0265,142.32,142.28,7.0283]
[1728403672978,7.0265,142.32,142.29,1.40534084]
[1728403673499,7.0259,142.33,142.29,8.43304084]
[1728403673975,7.0264,142.32,142.28,24.5986]
[1728403674689,7.025,142.35,142.31,7.0265]
[1728403675994,17.5589,142.38,142.3,17.5675]
[1728403676284,7.0264,142.32,142.28,7.0282]
[1728403677374,1.39908322,142.35,142.27,17.69659]
[1728403677605,7.0262,142.33,142.29,7.0279]
[1728403678199,1.39908322,142.35,142.27,17.69659]
[1728403678200,7.0271,142.31,142.27,24.72509]
[1728403678385,7.0266,142.32,142.28,7.0283]
[1728403678778,7.0258,142.34,142.29,7.0276]
[1728403679095,1.39908322,142.35,142.29,7.0276]
[1728403679871,7.026,142.33,142.29,7.0276]
[1728403680593,1.39908322,142.38,142.29,17.69449]
[1728403680896,7.0248,142.36,142.32,7.0263]
[1728403681082,7.0248,142.36,142.32,7.026]
[1728403681276,7.0248,142.36,142.32,22.8213]
[1728403681478,7.0248,142.36,142.33,1.40500569]
[1728403681789,1.39908322,142.38,142.32,15.7953]
[1728403681981,7.0253,142.35,142.32,15.7953]
[1728403682178,7.0247,142.36,142.32,22.8216]
[1728403683477,1.39908322,142.35,142.32,15.7953]
[1728403683672,1.39908322,142.35,142.28,15.1368]
[1728403683878,3.08718322,142.35,142.26,6.2764]
[1728403684380,7.0277,142.3,142.26,13.3056]
[1728403684810,7.0265,142.32,142.28,7.0283]
[1728403685097,7.0269,142.31,142.27,7.0287]
[1728403685488,1.39908322,142.33,142.26,6.2764]
[1728403685690,17.5602,142.37,142.28,17.5706]
[1728403685888,7.0258,142.34,142.3,7.0272]
[1728403686087,7.0249,142.35,142.31,7.0268]
[1728403686279,7.0249,142.35,142.31,8.43190461]
[1728403686691,8.42398322,142.36,142.31,8.43190461]
[1728403686886,7.0249,142.36,142.31,8.43190461]
[1728403687090,7.0251,142.35,142.31,7.0268]
[1728403687284,7.0244,142.37,142.32,7.0262]
[1728403687694,1.39908322,142.39,142.32,7.0262]
[1728403687899,7.0246,142.36,142.32,7.0262]
[1728403688308,7.0246,142.36,142.33,1.40499757]
[1728403688830,7.0246,142.36,142.32,23.2128]
[1728403689311,1.39908322,142.39,142.32,16.1866]
[1728403689617,7.024,142.37,142.33,13.0795]
[1728403690307,7.024,142.37,142.33,6.0537]
[1728403691078,7.024,142.37,142.33,13.0796]
[1728403692995,7.024,142.37,142.34,1.40479506]
[1728403693389,7.0234,142.38,142.34,8.42999506]
[1728403693991,7.0221,142.41,142.36,7.14939]
[1728403694285,1.39908322,142.44,142.37,8.42792818]
[1728403694286,7.0216,142.42,142.37,8.42792818]
[1728403694701,7.0216,142.42,142.37,1.40442818]
[1728403694898,17.5495,142.46,142.38,0.12549]
[1728403694899,1.39908322,142.45,142.38,0.12549]
[1728403695104,1.39908322,142.45,142.39,1.4042207]
[1728403695317,7.0208,142.44,142.4,7.0221]
[1728403695487,7.0208,142.44,142.41,1.40415707]
[1728403695689,1.39908322,142.48,142.39,15.5715]
[1728403695891,17.5477,142.47,142.39,15.5715]
[1728403696114,1.39908322,142.46,142.39,15.5715]
[1728403696354,7.0218,142.42,142.39,15.5715]
[1728403696501,7.0224,142.4,142.35,33.1853]
[1728403696815,7.0234,142.38,142.35,33.1853]
[1728403697309,7.0231,142.39,142.35,33.1853]
[1728403697812,7.0231,142.39,142.35,40.2098]
[1728403698109,7.0225,142.4,142.36,7.0243]
[1728403699204,1.39908322,142.42,142.35,33.1853]
[1728403699591,1.39908322,142.42,142.35,15.6238]
[1728403699794,7.0239,142.37,142.35,15.6238]
[1728403700124,7.0235,142.38,142.35,15.6238]
[1728403700303,1.39908322,142.42,142.36,1.40462124]
[1728403700504,7.0231,142.39,142.36,1.40462124]
[1728403701119,7.0231,142.39,142.35,22.6486]
[1728403701332,1.39908322,142.42,142.35,22.6486]
[1728403701333,1.39908322,142.42,142.35,15.6238]
[1728403701499,7.0226,142.4,142.36,8.42899583]
[1728403701695,6.91539161,142.47,142.37,0.25098]
[1728403701696,1.39908322,142.45,142.37,0.25098]
[1728403701912,7.0224,142.4,142.36,24.5849]
[1728403702603,1.39908322,142.45,142.36,0.25098]
[1728403702811,7.0212,142.43,142.39,7.0227]
[1728403703193,7.0206,142.44,142.4,7.0224]
[1728403704119,1.39908322,142.48,142.38,17.5584]
[1728403704314,7.0215,142.42,142.38,24.5815]
[1728403704623,7.0206,142.44,142.4,7.0221]
[1728403704919,7.0208,142.44,142.4,24.5783]
[1728403706526,7.0208,142.44,142.41,1.40407793]
[1728403707530,7.0208,142.44,142.4,30.8925]
[1728403712410,7.0219,142.41,142.37,24.5825]
[1728403712724,18.95168322,142.43,142.36,6.3591]
[1728403712906,7.0244,142.36,142.35,15.6238]
[1728403713114,7.0244,142.36,142.32,29.6606]
[1728403713323,1.39908322,142.4,142.32,29.6606]
[1728403713324,7.0251,142.35,142.32,22.6343]
[1728403713633,7.0246,142.36,142.32,29.6606]
[1728403714015,7.0239,142.37,142.33,7.0257]
[1728403714910,18.95358322,142.42,142.32,22.6343]
[1728403715110,7.0219,142.41,142.37,7.0238]
[1728403716908,17.5529,142.43,142.35,17.5619]
[1728403717108,7.0235,142.38,142.35,17.5619]
[1728403717323,1.39908322,142.42,142.35,17.5619]
[1728403717535,7.0231,142.39,142.35,24.5866]
[1728403718107,1.39908322,142.42,142.36,0.25098]
[1728403718314,17.5529,142.43,142.36,0.25098]
[1728403718618,1.39908322,142.42,142.36,0.25098]
[1728403718844,17.5529,142.43,142.36,0.25098]
[1728403719011,7.0225,142.4,142.36,7.27508]
[1728403719332,7.0229,142.39,142.35,24.5866]
[1728403719738,1.39908322,142.42,142.32,40.1992]
[1728403720039,7.024,142.37,142.33,7.0258]
[1728403720417,17.5576,142.39,142.32,22.6343]
[1728403720636,35.1072,142.43,142.34,1.40476962]
[1728403720637,18.95318322,142.42,142.34,1.40476962]
[1728403720851,18.95318322,142.42,142.33,17.5644]
[1728403721139,7.0242,142.37,142.33,24.5899]
[1728403721843,7.0235,142.38,142.34,7.0254]
[1728403722226,7.024,142.37,142.34,0.12549]
[1728403722543,18.95318322,142.42,142.34,0.12549]
[1728403722728,7.0235,142.38,142.34,7.15079]
[1728403723338,7.0235,142.38,142.34,0.12549]
[1728403723850,7.024,142.37,142.34,0.12549]
[1728403724234,18.95318322,142.42,142.34,0.12549]
[1728403724536,1.39908322,142.42,142.32,22.6343]
[1728403724735,35.22459,142.46,142.29,7.26532102]
[1728403724736,1.6881,142.4,142.29,7.26532102]
[1728403725051,17.5587,142.38,142.28,22.3126]
[1728403725223,7.0259,142.33,142.29,24.5973]
[1728403725423,1.39908322,142.37,142.29,17.5696]
[1728403725622,17.5587,142.38,142.31,7.0267]
[1728403725623,7.025,142.35,142.31,7.0267]
[1728403726141,1.39908322,142.39,142.31,0.12549]
[1728403726385,7.0235,142.38,142.34,7.0253]
[1728403726843,1.39908322,142.4,142.35,1.40470624]
[1728403727020,7.0236,142.38,142.35,1.40470624]
[1728403727213,7.0242,142.37,142.33,24.5903]
[1728403727416,7.0251,142.35,142.32,0.12549]
[1728403727641,1.39908322,142.38,142.31,0.25098]
[1728403727942,7.0241,142.37,142.33,7.0259]
[1728403728328,1.39908322,142.38,142.31,0.25098]
[1728403728844,7.0255,142.34,142.31,0.25098]
[1728403729343,7.025,142.35,142.31,7.27778]
[1728403729536,1.39908322,142.38,142.31,0.25098]
[1728403729846,7.0244,142.36,142.32,7.0262]
[1728403730533,17.5579,142.39,142.31,17.81768]
[1728403730732,18.95388322,142.42,142.33,17.5645]
[1728403730943,7.0244,142.36,142.33,17.5645]
[1728403731135,1.39908322,142.42,142.33,17.5645]
[1728403731136,7.024,142.37,142.33,24.5901]
[1728403731333,1.39908322,142.42,142.33,17.5645]
[1728403731544,1.39908322,142.42,142.35,39.4528]
[1728403731929,7.0234,142.38,142.35,39.4528]
[1728403732130,7.0234,142.38,142.35,21.8906]
[1728403733345,1.39908322,142.42,142.32,17.5649]
[1728403733873,0.12549,142.41,142.31,21.8906]
[1728403734160,7.0262,142.33,142.31,21.8906]
[1728403734661,7.0262,142.33,142.31,6.1905]
[1728403735449,7.0253,142.35,142.31,13.217]
[1728403735661,1.39908322,142.39,142.31,23.7574]
[1728403735840,7.0243,142.37,142.33,7.0256]
[1728403736158,7.0236,142.38,142.34,8.42988949]
[1728403736453,7.024,142.37,142.33,24.5903]
[1728403736656,7.0235,142.38,142.34,7.0252]
[1728403739149,18.95428322,142.41,142.33,17.5646]
[1728403739467,7.0234,142.38,142.35,7.0248]
[1728403740134,7.0234,142.38,142.34,0.12549]
[1728403740356,18.95428322,142.41,142.34,0.12549]
[1728403740544,7.0233,142.39,142.35,7.0248]
[1728403740852,18.95428322,142.41,142.35,7.0248]
[1728403740853,1.39908322,142.41,142.35,17.5617]
[1728403741032,7.0229,142.39,142.35,24.5864]
[1728403741660,7.0229,142.39,142.35,17.5617]
[1728403741855,7.0228,142.4,142.36,8.42896844]
[1728403742158,7.0253,142.35,142.31,29.049]
[1728403742334,1.39908322,142.39,142.31,29.049]
[1728403742335,17.5589,142.38,142.31,22.0223]
[1728403742530,1.39908322,142.37,142.29,17.5687]
[1728403742736,7.0269,142.31,142.27,7.0287]
[1728403743637,1.39908322,142.35,142.26,39.648]
[1728403743835,7.0274,142.3,142.26,46.6772]
[1728403744764,7.028,142.29,142.26,22.0757]
[1728403745057,7.0285,142.28,142.26,22.0757]
[1728403745270,7.0285,142.28,142.24,7.0302]
[1728403745559,7.0279,142.29,142.25,8.43514585]
[1728403745765,7.0275,142.3,142.25,8.43514585]
[1728403746354,7.0275,142.3,142.26,7.0293]
[1728403746665,17.5664,142.32,142.27,8.43402883]
[1728403746666,7.0268,142.32,142.27,8.43402883]
[1728403746858,1.39908322,142.34,142.28,8.43363262]
[1728403747168,7.026,142.33,142.28,8.43363262]
[1728403747668,7.0256,142.34,142.3,7.0273]
[1728403747964,7.0256,142.34,142.31,1.40517075]
[1728403748263,7.0245,142.36,142.31,1.40517075]
[1728403748448,7.0245,142.36,142.32,7.0263]
[1728403749756,7.0245,142.36,142.33,1.40503577]
[1728403749944,7.0245,142.36,142.33,1.4049442]
[1728403750147,7.0241,142.37,142.33,1.4049442]
[1728403750370,7.0241,142.37,142.33,8.4307442]
[1728403751044,7.0241,142.37,142.33,7.0258]
[1728403751737,7.025,142.35,142.31,17.5668]
[1728403751941,0.17827,142.38,142.29,22.5811]
[1728403751942,1.39908322,142.34,142.29,22.5811]
[1728403752171,17.5626,142.35,142.29,22.5811]
[1728403752462,1.39908322,142.34,142.29,22.5811]
[1728403752645,7.0262,142.33,142.29,29.6088]
[1728403752841,7.0274,142.3,142.26,13.1963]
[1728403753243,17.5641,142.34,142.26,6.1672]
[1728403753441,7.0264,142.32,142.28,7.0282]
[1728403753948,7.026,142.33,142.29,8.43310454]
[1728403754143,7.026,142.33,142.29,7.0278]
[1728403755346,7.026,142.33,142.3,1.4052257]
[1728403755773,7.0279,142.29,142.26,6.1672]
[1728403756284,7.0284,142.28,142.25,15.2078]
[1728403756569,1.39908322,142.32,142.25,15.2078]
[1728403756570,7.0289,142.27,142.25,15.2078]
[1728403756948,7.0293,142.26,142.22,13.6931]
[1728403757267,1.39908322,142.3,142.22,6.6619]
[1728403757268,7.03,142.25,142.22,6.6619]
[1728403757779,7.0295,142.26,142.22,6.6619]
[1728403758272,7.0303,142.24,142.22,6.6619]
[1728403759045,7.0295,142.26,142.22,13.6932]
[1728403759353,7.0289,142.27,142.23,8.43670403]
[1728403759869,7.0283,142.29,142.25,7.0298]
[1728403760067,7.0283,142.29,142.26,1.40568777]
[1728403760271,7.0288,142.28,142.23,24.6075]
[1728403760471,7.0296,142.26,142.22,13.6931]
[1728403760668,7.0301,142.25,142.22,6.6619]
[1728403761365,7.0304,142.24,142.22,6.6619]
[1728403761570,7.0299,142.25,142.22,6.6619]
[1728403762573,1.39908322,142.3,142.23,1.40599356]
[1728403762876,7.0285,142.28,142.23,7.0304]
[1728403763056,7.0285,142.28,142.24,7.0302]
[1728403763371,7.0279,142.29,142.25,7.0297]
[1728403763576,1.39908322,142.33,142.25,0.12549]
[1728403763753,7.0289,142.27,142.24,17.5756]
[1728403764086,1.39908322,142.31,142.24,17.5756]
[1728403764267,7.0275,142.3,142.25,7.0294]
[1728403764466,7.027,142.31,142.26,7.0292]
[1728403764674,7.027,142.31,142.27,7.0288]
[1728403764883,18.96228322,142.35,142.26,17.5731]
[1728403764884,7.0277,142.3,142.26,17.5731]
[1728403765574,7.0279,142.29,142.26,17.5731]
[1728403766176,7.0275,142.3,142.26,24.6024]
[1728403767877,7.0274,142.3,142.26,24.6023]
[1728403768252,1.39908322,142.34,142.26,17.5731]
[1728403768451,7.0279,142.29,142.26,17.5731]
[1728403768653,17.5677,142.31,142.23,17.576]
[1728403768855,17.5677,142.31,142.24,0.12549]
[1728403769097,7.0289,142.27,142.23,24.6067]
[1728403769460,7.0289,142.27,142.24,0.12549]
[1728403769880,7.0285,142.28,142.24,7.15579]
[1728403770583,1.39908322,142.3,142.23,17.576]
[1728403770883,7.0294,142.26,142.23,17.576]
[1728403771056,7.0294,142.26,142.22,13.6931]
[1728403771408,1.39908322,142.3,142.22,6.6619]
[1728403771409,7.0299,142.25,142.22,6.6619]
[1728403771581,7.0305,142.24,142.21,15.6551]
[1728403771760,7.0309,142.23,142.21,15.6551]
[1728403772362,7.0313,142.22,142.18,13.2248]
[1728403773257,1.39908322,142.26,142.18,6.1916]
[1728403773464,7.0319,142.21,142.18,6.1916]
[1728403773776,7.0315,142.22,142.18,6.1916]
[1728403774677,7.0315,142.22,142.18,13.2247]
[1728403774980,7.0305,142.24,142.2,7.0319]
[1728403775182,7.03,142.25,142.21,7.0318]
[1728403775377,7.03,142.25,142.21,8.43790236]
[1728403776273,7.029,142.27,142.23,7.0304]
[1728403776464,7.029,142.27,142.24,1.4058722]
[1728403777660,7.029,142.27,142.23,7.0304]
[1728403777860,7.0294,142.26,142.22,7.0312]
[1728403779770,1.39908322,142.3,142.23,18.98274829]
[1728403779970,7.029,142.27,142.24,1.40583336]
[1728403780371,7.029,142.27,142.23,24.6076]
[1728403785200,1.39908322,142.3,142.23,17.5769]
[1728403785501,7.0299,142.25,142.21,7.0317]
[1728403786801,7.0309,142.23,142.2,17.5797]
[1728403786973,17.5726,142.27,142.18,6.1916]
[1728403787182,35.1375,142.3,142.18,6.1916]
[1728403787183,17.5748,142.25,142.18,6.1916]
[1728403787387,7.0321,142.21,142.18,6.1916]
[1728403788305,1.39908322,142.24,142.18,6.1916]
[1728403788306,7.0324,142.2,142.18,6.1916]
[1728403789090,1.39908322,142.24,142.17,16.253]
[1728403789286,7.0323,142.2,142.17,16.253]
[1728403789986,1.39908322,142.24,142.17,16.253]
[1728403790189,18.97648322,142.23,142.14,6.3144]
[1728403790397,7.0334,142.18,142.14,13.3492]
[1728403790574,7.0331,142.19,142.15,7.0347]
[1728403790777,1.39908322,142.22,142.14,6.3144]
[1728403791005,18.97918322,142.21,142.14,6.3144]
[1728403791189,7.0343,142.16,142.14,6.3144]
[1728403791391,18.97918322,142.21,142.14,6.3144]
[1728403791692,7.034,142.17,142.14,6.3144]
[1728403792002,7.0352,142.15,142.13,15.8056]
[1728403792500,7.0343,142.16,142.12,7.0362]
[1728403793576,7.0343,142.16,142.11,7.8807328]
[1728403793928,7.0343,142.16,142.12,7.0362]
[1728403794105,1.39908322,142.18,142.13,8.44255275]
[1728403794312,7.0339,142.17,142.13,7.0357]
[1728403795781,7.0335,142.18,142.12,17.5905]
[1728403796085,7.0338,142.17,142.13,7.0356]
[1728403796580,3.08718322,142.21,142.12,17.5905]
[1728403796987,7.0339,142.17,142.13,7.0357]
[1728403798111,7.0344,142.16,142.12,24.6267]
[1728403798481,7.034,142.17,142.12,24.6267]
[1728403799489,7.0343,142.16,142.12,24.6267]
[1728403799884,1.39908322,142.19,142.12,17.5905]
[1728403800096,1.39908322,142.19,142.13,7.0355]
[1728403800303,8.43198322,142.19,142.14,17.5879]
[1728403800503,7.0329,142.19,142.14,17.5879]
[1728403800688,7.0335,142.18,142.14,24.623]
[1728403801903,1.39908322,142.22,142.16,17.5853]
[1728403803202,1.39908322,142.22,142.18,7.0329]
[1728403803203,7.0314,142.22,142.18,7.0329]
[1728403803376,7.0314,142.22,142.19,1.40637012]
[1728403803781,7.0314,142.22,142.18,7.0329]
[1728403803978,7.0319,142.21,142.17,13.2004]
[1728403804187,7.033,142.19,142.17,6.1668]
[1728403804402,7.0325,142.2,142.17,6.1668]
[1728403804605,18.97508322,142.24,142.17,6.1668]
[1728403804801,7.032,142.21,142.17,6.1668]
[1728403805005,7.0314,142.22,142.18,7.0333]
[1728403805233,1.39908322,142.26,142.2,7.0322]
[1728403805420,8.42848322,142.26,142.22,7.0312]
[1728403805675,7.0288,142.27,142.23,7.0306]
[1728403805949,3.08718322,142.29,142.24,1.40583706]
[1728403805950,1.39908322,142.29,142.24,1.40583706]
[1728403806119,7.028,142.29,142.25,7.0298]
[1728403806825,7.0275,142.3,142.26,7.0293]
[1728403807029,7.027,142.31,142.27,1.40558953]
[1728403807231,7.027,142.31,142.27,8.43418953]
[1728403807407,18.96078322,142.36,142.26,24.6021]
[1728403807605,4.37119165,142.35,142.24,6.1668]
[1728403807803,7.0284,142.28,142.24,6.1668]
[1728403808409,7.0278,142.3,142.25,0.12549]
[1728403808615,7.0269,142.31,142.27,7.0288]
[1728403808821,7.0269,142.31,142.26,7.0292]
[1728403809027,1.39908322,142.3,142.25,17.69969]
[1728403809230,1.39908322,142.34,142.25,17.69969]
[1728403809614,7.0279,142.29,142.25,24.72919]
[1728403810013,7.0277,142.3,142.26,7.0293]
[1728403810442,7.0277,142.3,142.25,24.72939]
[1728403811138,7.0285,142.28,142.25,17.69969]
[1728403811301,7.0279,142.29,142.25,17.69969]
[1728403811504,7.0279,142.29,142.25,24.72929]
[1728403812129,7.0275,142.3,142.26,7.029]
[1728403814791,1.39908322,142.32,142.25,17.69969]
[1728403814992,7.027,142.31,142.27,7.0288]
[1728403815192,1.52457322,142.36,142.26,0.12549]
[1728403815499,7.0264,142.32,142.28,7.0283]
[1728403815815,7.0259,142.34,142.29,7.0277]
[1728403815996,1.39908322,142.33,142.28,7.27918]
[1728403816196,7.0269,142.32,142.27,24.6002]
[1728403816510,7.0269,142.31,142.27,24.6002]
[1728403816693,7.0267,142.32,142.28,0.12549]
[1728403816894,7.0267,142.32,142.28,7.15379]
[1728403817494,1.39908322,142.35,142.27,17.5715]
[1728403817696,1.39908322,142.35,142.24,23.7417]
[1728403817697,17.5639,142.34,142.24,23.7417]
[1728403817914,1.39908322,142.33,142.24,23.7417]
[1728403818113,7.0273,142.31,142.26,17.5731]
[1728403818318,7.0273,142.31,142.27,7.0285]
[1728403818824,7.0265,142.32,142.28,7.0283]
[1728403819030,7.0269,142.31,142.27,7.27968]
[1728403820920,7.0259,142.33,142.29,7.0275]
[1728403821433,20.64798322,142.37,142.3,7.0273]
[1728403821434,7.0257,142.34,142.3,7.0273]
[1728403821921,7.0264,142.32,142.29,7.0278]
[1728403822224,7.0259,142.33,142.29,7.0278]
[1728403822606,7.0267,142.32,142.28,24.72409]
[1728403824110,7.0259,142.33,142.29,7.27848]
[1728403824601,7.0259,142.33,142.29,7.27868]
[1728403824807,7.0265,142.32,142.29,7.27878]
[1728403826020,18.95988322,142.37,142.29,7.27878]
[1728403826212,7.0261,142.33,142.29,7.27878]
[1728403828126,7.0269,142.31,142.28,17.5703]
[1728403828502,7.0265,142.32,142.28,24.5986]
[1728403829525,7.0262,142.33,142.29,7.27878]
[1728403829933,1.39908322,142.37,142.3,39.7391]
[1728403830225,7.0247,142.36,142.32,7.0261]
[1728403830426,7.0247,142.36,142.33,1.40496355]
[1728403831034,7.0252,142.35,142.31,7.0267]
[1728403831329,7.0259,142.33,142.3,22.1709]
[1728403831504,7.0269,142.31,142.3,22.1709]
[1728403831702,7.0264,142.32,142.3,22.1709]
[1728403831919,7.0262,142.33,142.3,22.1709]
[1728403835507,1.39908322,142.32,142.26,21.9223]
[1728403835711,7.028,142.29,142.26,28.9516]
[1728403836233,7.0277,142.3,142.26,28.9516]
[1728403836418,7.0282,142.29,142.26,21.9223]
[1728403836618,7.0275,142.3,142.26,28.9515]
[1728403838205,7.0279,142.29,142.26,28.9515]
[1728403838423,7.0279,142.29,142.26,21.9223]
[1728403838731,7.0279,142.29,142.26,28.9516]
[1728403838964,1.39908322,142.32,142.26,28.9516]
[1728403839115,1.39908322,142.33,142.26,28.9516]
[1728403839634,7.0277,142.3,142.26,28.9516]
[1728403839821,7.0275,142.3,142.27,7.0288]
[1728403840013,1.39908322,142.33,142.28,17.5709]
[1728403840212,1.52457322,142.36,142.28,17.5709]
[1728403840613,7.0274,142.3,142.27,7.0288]
[1728403841922,7.0274,142.3,142.26,28.9516]
[1728403846625,7.0272,142.31,142.27,7.0286]
[1728403846826,1.39908322,142.34,142.27,7.0286]
[1728403847022,7.0275,142.3,142.27,7.0286]
[1728403847517,7.0275,142.3,142.26,21.9223]
[1728403847719,7.0275,142.3,142.26,28.9513]
[1728403847929,7.0288,142.27,142.26,21.9223]
[1728403848138,7.0288,142.27,142.23,46.083]
[1728403848508,17.5674,142.31,142.23,46.083]
[1728403848733,7.0293,142.26,142.23,46.083]
[1728403848916,7.0293,142.26,142.23,39.0524]
[1728403849526,1.39908322,142.3,142.23,46.0831]
[1728403849733,1.39908322,142.3,142.23,39.0524]
[1728403849938,7.0297,142.26,142.23,46.0832]
[1728403850638,1.39908322,142.28,142.23,39.0524]
[1728403850843,7.0282,142.29,142.25,7.0297]
[1728403851047,7.0275,142.3,142.26,7.029]
[1728403851217,7.0269,142.31,142.26,1.40575718]
[1728403851545,7.0264,142.32,142.28,7.0283]
[1728403851731,1.39908322,142.34,142.29,1.40536633]
[1728403851938,7.026,142.33,142.29,8.43316633]
[1728403852642,7.0264,142.32,142.28,7.0282]
[1728403853125,1.39908322,142.34,142.28,0.12549]
[1728403853326,7.0269,142.31,142.27,24.6008]
[1728403855539,7.0265,142.32,142.28,7.15349]
[1728403855948,7.026,142.33,142.29,8.43299065]
[1728403856425,1.39908322,142.36,142.29,41.91619065]
[1728403856625,7.0247,142.36,142.32,7.0263]
[1728403856830,17.18275347,142.38,142.33,1.40501646]
[1728403857044,7.024,142.37,142.33,8.43081646]
[1728403857220,7.0244,142.36,142.32,7.0262]
[1728403857421,7.024,142.37,142.33,8.43058978]
[1728403857638,15.78367025,142.38,142.34,1.40487781]
[1728403857861,15.78367025,142.38,142.35,40.1869]
[1728403858145,15.78367025,142.38,142.36,8.42898931]
[1728403858749,15.78367025,142.38,142.35,47.2117]
[1728403858940,15.78367025,142.38,142.37,7.0239]
[1728403859545,15.78367025,142.38,142.35,40.1869]
[1728403859916,15.78367025,142.38,142.36,0.25098]
[1728403860430,15.78367025,142.38,142.36,7.27498]
[1728403861033,15.78367025,142.38,142.37,7.0239]